fUST/lending_fUST_20240502
["ID","MTS","AMOUNT","RATE_DAILY","PERIOD"]
[325246914,1714647032307,-150.0,0.00040808,2]
[325246916,1714647032318,-5000.0,0.00042,4]
[325246918,1714647032327,-154.8672724,0.00042128,4]
[325246920,1714647032336,-156.30863821,0.0004289,2]
[325246922,1714647032346,-718.63486199,0.00042988,2]
[325246924,1714647032357,-460.20366439,0.00042988,4]
[325246926,1714647032367,-716.36134201,0.00042988,4]
[325246928,1714647032377,-794.63379142,0.00042988,4]
[325246930,1714647032386,-184.34525577,0.00042988,4]
[325246932,1714647032396,-155.14214418,0.00042989,4]
[325246934,1714647032406,-21657.18159463,0.0004299,7]
[325246936,1714647032416,-1526.30177458,0.0004299,120]
[325246989,1714647043382,-322.01721179,0.0004299,120]
[325246990,1714647043394,-1197.16605018,0.0004299,120]
[325248513,1714647063766,3052.13238877,0.00020913,2]
[325248555,1714647173274,551.84117837,9.999e-05,2]
[325248557,1714647194187,67426.19859378,0.00020913,2]
[325248558,1714647199213,189.45958247,0.00018,2]
[325248559,1714647215589,16340.70442029,0.00020913,2]
[325248560,1714647239777,8485.61748417,0.0002,2]
[325248562,1714647271804,480.84782884,0.00019725,2]
[325248563,1714647272920,157.36241004,0.00019178,2]
[325248575,1714647969452,808.02,0.00019178,2]
[325248576,1714648154144,-166.666666,0.00024133,2]
[325248577,1714648154168,-8114.30734007,0.0002516,2]
[325248636,1714648233927,-194.46840938,0.0002506,4]
[325248638,1714648233937,-16785.69265993,0.0002516,2]
[325248640,1714648233946,-194.46840936,0.00025187,4]
[325248642,1714648233955,-194.46840936,0.00025313,4]
[325248644,1714648233964,-200.0,0.00025413,2]
[325248646,1714648233973,-3000.0,0.00026108,2]
[325248648,1714648233984,-166.666666,0.00027423,2]
[325248650,1714648233993,-221.01865842,0.00028314,2]
[325248652,1714648234003,-163.15085687,0.00028315,2]
[325248654,1714648234012,-625.11361887,0.00028415,2]
[325248656,1714648234021,-219.799045,0.00028493,2]
[325248658,1714648234031,-161.891448,0.00028493,2]
[325248660,1714648234040,-9130.36775857,0.0002877,2]
[325248662,1714648234049,-238.2,0.00031181,3]
[325248664,1714648234058,-219.799045,0.00034203,2]
[325248665,1714648234067,-219.799045,0.00039913,2]
[325248667,1714648234076,-6094.82221419,0.0004,15]
[325248668,1714648234085,-161.891448,0.00040548,2]
[325248669,1714648234095,-150.0,0.00040916,2]
[325248670,1714648234105,-5000.0,0.00042,4]
[325248671,1714648234114,-156.3086382,0.0004289,2]
[325248672,1714648234124,-156.3086382,0.00042893,2]
[325248673,1714648234133,-156.3086382,0.00042897,2]
[325248674,1714648234142,-156.3086382,0.000429,2]
[325248675,1714648234151,-173.41,0.00042978,30]
[325248676,1714648234161,-867.05,0.00042979,30]
[325248677,1714648234170,-1971.78365489,0.00042988,4]
[325248678,1714648234181,-49.44376752,0.00042988,4]
[325248679,1714648234191,-1104.38313858,0.00042988,30]
[325248680,1714648234200,-3068.59447438,0.00042988,4]
[325248681,1714648234210,-361.8150045,0.00042988,4]
[325248683,1714648234221,-685.04119853,0.00042988,4]
[325248685,1714648234230,-634.65395901,0.00042988,4]
[325248687,1714648234239,-280.1797143,0.00042988,4]
[325248688,1714648234248,-136.35849552,0.00042988,4]
[325248696,1714648239291,-18.69474983,0.00042988,4]
[325248697,1714648239300,-155.4492751,0.00042988,7]
[325248698,1714648239310,-242.67840609,0.00042988,4]
[325248699,1714648239320,-155.07557911,0.00042988,2]
[325248700,1714648239329,-154.50092802,0.00042988,4]
[325248701,1714648239341,-137.46073608,0.00042988,4]
[325248702,1714648239351,-190.9846504,0.00042988,2]
[325248703,1714648239362,-11082.10183864,0.00042989,4]
[325248704,1714648239374,-271.18,0.00042989,4]
[325248792,1714648240832,-4448.82230171,0.00042989,4]
[325248794,1714648240842,-12925.04216414,0.0004299,7]
[325248796,1714648240853,-98407.53895417,0.0004299,120]
[325248994,1714648243684,-6161.4265353,0.0004299,120]
[325248996,1714648243974,-616.36839507,0.0004299,120]
[325249032,1714648248010,-5000.0,0.00042989,4]
[325249034,1714648248020,-52094.63393753,0.0004299,120]
[325249035,1714648248030,-22584.60905065,0.0004299,4]
[325249037,1714648248039,-5155.83419794,0.0004299,4]
[325249038,1714648248049,-199.99364712,0.0004299,4]
[325249039,1714648248058,-151.994888,0.0004299,7]
[325249040,1714648248068,-151.0,0.0004299,7]
[325249041,1714648248078,-151.0,0.0004299,7]
[325249042,1714648248087,-151.0,0.0004299,7]
[325249043,1714648248096,-156.783218,0.0004299,7]
[325249044,1714648248106,-151.0,0.0004299,7]
[325249045,1714648248116,-151.0,0.0004299,7]
[325249046,1714648248125,-151.0,0.0004299,7]
[325249047,1714648248134,-151.0,0.0004299,7]
[325249048,1714648248147,-151.0,0.0004299,7]
[325249049,1714648248156,-151.0,0.0004299,7]
[325249050,1714648248165,-151.0,0.0004299,7]
[325249051,1714648248175,-151.0,0.0004299,7]
[325249052,1714648248185,-151.0,0.0004299,7]
[325249053,1714648248195,-151.0,0.0004299,7]
[325249054,1714648248204,-160.509036,0.0004299,7]
[325249055,1714648248214,-151.0,0.0004299,7]
[325249056,1714648248223,-151.0,0.0004299,7]
[325249057,1714648248232,-151.0,0.0004299,7]
[325249058,1714648248243,-151.0,0.0004299,7]
[325249059,1714648248253,-151.0,0.0004299,7]
[325249060,1714648248264,-173.656001,0.0004299,7]
[325249061,1714648248273,-173.656001,0.0004299,7]
[325249062,1714648248283,-151.0,0.0004299,7]
[325249063,1714648248296,-173.656001,0.0004299,7]
[325249064,1714648248309,-173.656001,0.0004299,7]
[325249065,1714648248318,-175.726766,0.0004299,7]
[325249066,1714648248328,-175.726766,0.0004299,7]
[325249067,1714648248337,-175.726766,0.0004299,7]
[325249068,1714648248346,-175.726766,0.0004299,7]
[325249069,1714648248355,-151.0,0.0004299,7]
[325249070,1714648248364,-151.0,0.0004299,7]
[325249071,1714648248374,-151.0,0.0004299,7]
[325249072,1714648248383,-151.0,0.0004299,7]
[325249073,1714648248393,-151.0,0.0004299,7]
[325249074,1714648248402,-151.0,0.0004299,7]
[325249075,1714648248412,-162.195952,0.0004299,7]
[325249076,1714648248422,-162.195952,0.0004299,7]
[325249077,1714648248432,-151.0,0.0004299,7]
[325249078,1714648248441,-162.195952,0.0004299,7]
[325249079,1714648248451,-186.155749,0.0004299,7]
[325249080,1714648248461,-162.195952,0.0004299,7]
[325249081,1714648248470,-151.0,0.0004299,7]
[325249082,1714648248480,-151.0,0.0004299,7]
[325249083,1714648248489,-151.0,0.0004299,7]
[325249084,1714648248499,-151.0,0.0004299,7]
[325249085,1714648248508,-151.0,0.0004299,7]
[325249086,1714648248518,-151.0,0.0004299,7]
[325249087,1714648248527,-151.0,0.0004299,7]
[325249088,1714648248536,-151.0,0.0004299,7]
[325249089,1714648248546,-151.0,0.0004299,7]
[325249090,1714648248555,-151.0,0.0004299,7]
[325249091,1714648248564,-151.0,0.0004299,7]
[325249092,1714648248574,-276.42522,0.0004299,7]
[325249093,1714648248583,-151.0,0.0004299,7]
[325249094,1714648248592,-151.0,0.0004299,7]
[325249095,1714648248609,-151.0,0.0004299,7]
[325249096,1714648248619,-211.09513997,0.0004299,7]
[325249097,1714648248628,-227.328247,0.0004299,7]
[325249098,1714648248638,-2186.44800111,0.0004299,7]
[325249099,1714648248651,-474.17740683,0.0004299,7]
[325249100,1714648347862,154.7215013,9.999e-05,2]
[325249101,1714648404963,154.7215013,9.999e-05,2]
[325249102,1714648503107,9546.36456413,0.0002,2]
[325249106,1714648974540,5462.53125909,0.00020913,2]
[325249109,1714649164533,440.01381546,0.000189,2]
[325249110,1714649289377,773.8200759,0.000189,2]
[325249111,1714649311373,515.8800506,0.000189,2]
[325249112,1714649327354,429.90004217,0.000189,2]
[325249113,1714649349355,429.90004217,0.000189,2]
[325249114,1714649367515,223.97792197,0.000189,2]
[325249115,1714649385545,223.97792197,0.000189,2]
[325249116,1714649407526,223.97792197,0.000189,2]
[325249117,1714649423527,223.97792197,0.000189,2]
[325249162,1714649433442,-440.01381546,0.000239,2]
[325249164,1714649433453,-166.666666,0.00025578,2]
[325249165,1714649433463,-31.65784963,0.00025643,2]
[325249166,1714649433583,-1967.2358906,0.00025643,2]
[325249167,1714649433595,-1001.10625977,0.00025643,2]
[325249168,1714649433605,-1000.0,0.00025691,2]
[325249170,1714649433614,-193.058035,0.00025889,2]
[325249172,1714649433626,-591.4291521,0.00025983,2]
[325249175,1714649433636,-221.01865842,0.00028063,2]
[325249178,1714649433645,-160.453387,0.00028064,2]
[325249180,1714649433654,-9380.01685072,0.00028312,2]
[325249183,1714649433664,-410.75185666,0.00028393,2]
[325249184,1714649433674,-24900.0,0.00028453,2]
[325249185,1714649433683,-168.659404,0.00028493,2]
[325249186,1714649433693,-163.050998,0.00028493,2]
[325249187,1714649433702,-306.009666,0.00028661,2]
[325249188,1714649433712,-252.3,0.00030531,3]
[325249189,1714649433721,-189.0935612,0.00033618,2]
[325249190,1714649433731,-165.72452,0.00033718,2]
[325249191,1714649433740,-410.75185665,0.00036823,2]
[325249192,1714649433750,-163.050998,0.00036839,2]
[325249193,1714649433760,-150.0,0.00037255,2]
[325249194,1714649433770,-193.058035,0.00038833,2]
[325249195,1714649433779,-323.18223136,0.00039328,4]
[325249196,1714649433789,-304.65020211,0.0004,15]
[325249197,1714649433800,-150.0,0.00040255,2]
[325249198,1714649433809,-417.0,0.00040653,2]
[325249199,1714649433819,-7285.66843683,0.0004289,2]
[325249200,1714649433831,-540.91910422,0.000429,2]
[325249201,1714649433840,-531.45,0.0004299,30]
[325249202,1714649433850,-354.3,0.0004299,30]
[325249203,1714649433860,-295.25,0.0004299,30]
[325249204,1714649433872,-29341.0,0.00043,30]
[325249205,1714649433882,-540.9191042,0.0004315,2]
[325249206,1714649433891,-540.9191042,0.000434,2]
[325249207,1714649433901,-1171.85431421,0.00043599,2]
[325249208,1714649433914,-828.14568579,0.00043599,2]
[325249209,1714649434042,-540.9191042,0.0004365,2]
[325249210,1714649434052,-412.64,0.00043688,3]
[325249211,1714649434063,-233.23413787,0.00043696,4]
[325249212,1714649434072,-205.62434312,0.00043696,4]
[325249213,1714649434082,-5019.01768017,0.00043697,4]
[325249214,1714649434092,-154.81422293,0.00043697,2]
[325249215,1714649434102,-8034.85960719,0.00043698,7]
[325249216,1714649434111,-241.71320654,0.00043698,4]
[325249217,1714649434123,-403.80422203,0.00043698,4]
[325249218,1714649434132,-285.33745335,0.00043698,4]
[325249219,1714649434141,-304.58936295,0.00043698,4]
[325249220,1714649434151,-6320.60197019,0.00043698,4]
[325249284,1714649439399,-246.04,0.00043688,30]
[325249286,1714649439409,-341.78448768,0.00043698,4]
[325249289,1714649439421,-60763.81213591,0.00043698,4]
[325249291,1714649439431,-296.23745721,0.00043698,4]
[325249293,1714649439441,-189.3964787,0.00043698,2]
[325249295,1714649439450,-154.81422293,0.00043698,4]
[325249297,1714649439460,-1575.31939472,0.00043698,4]
[325249300,1714649439469,-329.99389325,0.00043698,4]
[325249302,1714649439478,-2311.67484853,0.00043698,4]
[325249304,1714649439487,-154.81422293,0.00043698,4]
[325249306,1714649439496,-728.72898275,0.00043698,4]
[325249308,1714649439506,-400.0,0.00043698,2]
[325249310,1714649439515,-154.79876161,0.00043699,4]
[325249312,1714649439525,-154.81422293,0.00043699,7]
[325249314,1714649439534,-3051.21388193,0.00043699,4]
[325249316,1714649439544,-278.367607,0.00043699,4]
[325249318,1714649439553,-59420.10092928,0.00043699,4]
[325249319,1714649439562,-500.0,0.00043835,7]
[325249321,1714649439572,-500.0,0.00043835,7]
[325249323,1714649439581,-975.95,0.00043835,7]
[325249325,1714649439591,-500.0,0.00043835,7]
[325249327,1714649439600,-975.95,0.00043835,7]
[325249328,1714649439609,-975.95,0.00043835,7]
[325249329,1714649439619,-500.0,0.00043835,7]
[325249330,1714649439630,-975.95,0.00043835,7]
[325249331,1714649439640,-500.0,0.00043835,7]
[325249332,1714649439649,-975.95,0.00043835,7]
[325249333,1714649439658,-500.0,0.00043835,7]
[325249334,1714649439667,-975.95,0.00043835,7]
[325249335,1714649439678,-500.0,0.00043835,7]
[325249336,1714649439687,-500.0,0.00043835,7]
[325249338,1714649439697,-500.0,0.00043835,7]
[325249340,1714649439706,-500.0,0.00043835,7]
[325249341,1714649439715,-500.0,0.00043835,7]
[325249343,1714649439726,-500.0,0.00043835,7]
[325249344,1714649439735,-500.0,0.00043835,7]
[325249345,1714649439745,-244.78209167,0.00043835,7]
[325249346,1714649439754,-500.0,0.00043835,7]
[325249347,1714649439763,-500.0,0.00043835,7]
[325249348,1714649439773,-500.0,0.00043835,7]
[325249349,1714649439782,-500.0,0.00043835,7]
[325249350,1714649439791,-500.0,0.00043835,7]
[325249351,1714649439800,-500.0,0.00043835,7]
[325249352,1714649439810,-643.29,0.00043835,7]
[325249353,1714649439819,-506.79278017,0.00043835,7]
[325249369,1714649441532,223.97792197,0.000189,2]
[325249370,1714649443040,-136.49721983,0.00043835,7]
[325249371,1714649443050,-500.0,0.00043835,7]
[325249372,1714649443060,-643.29,0.00043835,7]
[325249373,1714649443070,-643.29,0.00043835,7]
[325249374,1714649443079,-643.29,0.00043835,7]
[325249375,1714649443088,-643.29,0.00043835,7]
[325249376,1714649443097,-246.88638224,0.00043835,7]
[325249377,1714649443169,-257.83755903,0.00043835,7]
[325249381,1714649443179,-947.25,0.00043835,7]
[325249385,1714649443188,-947.25,0.00043835,7]
[325249388,1714649443197,-947.25,0.00043835,7]
[325249390,1714649443206,-500.0,0.00043835,7]
[325249392,1714649443215,-947.25,0.00043835,7]
[325249394,1714649443225,-500.0,0.00043835,7]
[325249396,1714649443234,-500.0,0.00043835,7]
[325249398,1714649443244,-947.25,0.00043835,7]
[325249400,1714649443252,-500.0,0.00043835,7]
[325249402,1714649443262,-500.0,0.00043835,7]
[325249404,1714649443271,-947.25,0.00043835,7]
[325249405,1714649443280,-500.0,0.00043835,7]
[325249406,1714649443289,-500.0,0.00043835,7]
[325249408,1714649443298,-500.0,0.00043835,7]
[325249410,1714649443307,-500.0,0.00043835,7]
[325249413,1714649443316,-500.0,0.00043835,7]
[325249416,1714649443325,-500.0,0.00043835,7]
[325249419,1714649443334,-500.0,0.00043835,7]
[325249420,1714649443344,-500.0,0.00043835,7]
[325249422,1714649443353,-500.0,0.00043835,7]
[325249424,1714649443362,-500.0,0.00043835,7]
[325249426,1714649443371,-500.0,0.00043835,7]
[325249428,1714649443382,-500.0,0.00043835,7]
[325249430,1714649443391,-500.0,0.00043835,7]
[325249432,1714649443401,-500.0,0.00043835,7]
[325249434,1714649443410,-500.0,0.00043835,7]
[325249436,1714649443420,-500.0,0.00043835,7]
[325249437,1714649443428,-500.0,0.00043835,7]
[325249439,1714649443438,-500.0,0.00043835,7]
[325249441,1714649443447,-1246.13,0.00043835,7]
[325249443,1714649443457,-504.53324562,0.00043835,7]
[325249445,1714649443466,-500.0,0.00043835,7]
[325249446,1714649443475,-500.0,0.00043835,7]
[325249448,1714649443484,-1246.13,0.00043835,7]
[325249451,1714649443494,-216.36995514,0.00043835,7]
[325249452,1714649443503,-1246.13,0.00043835,7]
[325249454,1714649443512,-1246.13,0.00043835,7]
[325249456,1714649443521,-1246.13,0.00043835,7]
[325249458,1714649443530,-1246.13,0.00043835,7]
[325249460,1714649443539,-500.0,0.00043835,7]
[325249462,1714649443549,-1246.13,0.00043835,7]
[325249472,1714649443645,-500.0,0.00043835,7]
[325249473,1714649443656,-1246.13,0.00043835,7]
[325249474,1714649443666,-1246.13,0.00043835,7]
[325249475,1714649443675,-500.0,0.00043835,7]
[325249476,1714649443685,-1246.13,0.00043835,7]
[325249477,1714649443694,-499.41629082,0.00043835,7]
[325249478,1714649443704,-248.36662735,0.00043835,7]
[325249479,1714649443713,-192.82652211,0.00043835,7]
[325249480,1714649443722,-1290.87,0.00043835,7]
[325249481,1714649443732,-1290.87,0.00043835,7]
[325249482,1714649443741,-1290.87,0.00043835,7]
[325249483,1714649443751,-1290.87,0.00043835,7]
[325249484,1714649443760,-1290.87,0.00043835,7]
[325249485,1714649443770,-1290.87,0.00043835,7]
[325249486,1714649443780,-2258.88,0.00043835,7]
[325249487,1714649443790,-1116.37,0.00043835,7]
[325249488,1714649443799,-2258.88,0.00043835,7]
[325249489,1714649443808,-1116.37,0.00043835,7]
[325249490,1714649443817,-2258.88,0.00043835,7]
[325249491,1714649443827,-1116.37,0.00043835,7]
[325249492,1714649443835,-2258.88,0.00043835,7]
[325249493,1714649443845,-1116.37,0.00043835,7]
[325249494,1714649443854,-2258.88,0.00043835,7]
[325249495,1714649443863,-1116.37,0.00043835,7]
[325249496,1714649443873,-2258.88,0.00043835,7]
[325249497,1714649443884,-1116.37,0.00043835,7]
[325249498,1714649443893,-500.0,0.00043835,2]
[325249499,1714649443902,-500.0,0.00043835,2]
[325249500,1714649443911,-500.0,0.00043835,2]
[325249501,1714649443920,-2009.93,0.00043835,7]
[325249502,1714649443929,-500.0,0.00043835,2]
[325249503,1714649443939,-2009.93,0.00043835,7]
[325249504,1714649443948,-500.0,0.00043835,2]
[325249505,1714649443957,-2009.93,0.00043835,7]
[325249506,1714649443968,-500.0,0.00043835,2]
[325249507,1714649443979,-2009.93,0.00043835,7]
[325249508,1714649443989,-2009.93,0.00043835,7]
[325249509,1714649443999,-2009.93,0.00043835,7]
[325249510,1714649444007,-151.0,0.00043835,7]
[325249511,1714649444017,-151.0,0.00043835,7]
[325249512,1714649444026,-500.0,0.00043835,7]
[325249513,1714649444037,-504.15849961,0.00043835,7]
[325249514,1714649444046,-500.0,0.00043835,7]
[325249515,1714649444055,-500.0,0.00043835,7]
[325249516,1714649444065,-500.0,0.00043835,7]
[325249517,1714649444073,-194.22,0.00043835,7]
[325249518,1714649444083,-500.0,0.00043835,7]
[325249519,1714649444092,-413.23220426,0.00043835,7]
[325249520,1714649444101,-151.0,0.00043835,7]
[325249521,1714649444111,-237.81357,0.00043835,7]
[325249522,1714649444120,-1000.0,0.00043835,120]
[325249523,1714649444130,-1000.0,0.00043835,120]
[325249524,1714649444140,-500.0,0.00043835,7]
[325249525,1714649444149,-1000.0,0.00043835,120]
[325249526,1714649444158,-500.0,0.00043835,7]
[325249527,1714649444167,-1000.0,0.00043835,120]
[325249528,1714649444176,-500.0,0.00043835,7]
[325249529,1714649444185,-1000.0,0.00043835,120]
[325249531,1714649444195,-500.0,0.00043835,7]
[325249534,1714649444204,-500.0,0.00043835,7]
[325249537,1714649444213,-500.0,0.00043835,7]
[325249540,1714649444222,-500.0,0.00043835,7]
[325249543,1714649444232,-500.0,0.00043835,7]
[325249545,1714649444241,-500.0,0.00043835,7]
[325249547,1714649444250,-488.49980083,0.00043835,7]
[325249549,1714649444259,-500.0,0.00043835,7]
[325249551,1714649444268,-500.0,0.00043835,7]
[325249552,1714649444277,-500.0,0.00043835,7]
[325249553,1714649444287,-500.0,0.00043835,7]
[325249554,1714649444297,-500.0,0.00043835,7]
[325249555,1714649444306,-500.0,0.00043835,7]
[325249556,1714649444316,-500.0,0.00043835,7]
[325249558,1714649444325,-500.0,0.00043835,7]
[325249559,1714649444334,-500.0,0.00043835,7]
[325249560,1714649444343,-503.16220699,0.00043835,7]
[325249561,1714649444352,-500.0,0.00043835,7]
[325249563,1714649444362,-500.0,0.00043835,7]
[325249564,1714649444372,-500.0,0.00043835,7]
[325249565,1714649444383,-530.00109499,0.00043835,7]
[325249566,1714649444394,-2395.29,0.00043835,7]
[325249567,1714649444404,-2395.29,0.00043835,7]
[325249569,1714649444415,-2395.29,0.00043835,7]
[325249571,1714649444424,-151.0,0.00043835,7]
[325249572,1714649444434,-2395.29,0.00043835,7]
[325249573,1714649444443,-2395.29,0.00043835,7]
[325249574,1714649444454,-2330.83,0.00043835,7]
[325249575,1714649444463,-2395.29,0.00043835,7]
[325249576,1714649444473,-1370.18,0.00043835,7]
[325249577,1714649444483,-1370.18,0.00043835,7]
[325249578,1714649444492,-2330.83,0.00043835,7]
[325249579,1714649444502,-1370.18,0.00043835,7]
[325249580,1714649444511,-1370.18,0.00043835,7]
[325249581,1714649444520,-2330.83,0.00043835,7]
[325249582,1714649444530,-2330.83,0.00043835,7]
[325249583,1714649444539,-1370.18,0.00043835,7]
[325249584,1714649444549,-2330.83,0.00043835,7]
[325249585,1714649444559,-1370.18,0.00043835,7]
[325249586,1714649444568,-2330.83,0.00043835,7]
[325249587,1714649444579,-500.0,0.00043835,7]
[325249588,1714649444588,-500.0,0.00043835,7]
[325249589,1714649444598,-500.0,0.00043835,7]
[325249590,1714649444608,-500.0,0.00043835,7]
[325249591,1714649444617,-500.0,0.00043835,7]
[325249592,1714649444627,-500.0,0.00043835,7]
[325249593,1714649444639,-500.0,0.00043835,7]
[325249594,1714649444648,-1028.34,0.00043835,7]
[325249595,1714649444658,-500.0,0.00043835,7]
[325249596,1714649444667,-1028.34,0.00043835,7]
[325249597,1714649444677,-500.0,0.00043835,7]
[325249598,1714649444686,-1028.34,0.00043835,7]
[325249599,1714649444696,-308.2684899,0.00043835,7]
[325249600,1714649444705,-1028.34,0.00043835,7]
[325249601,1714649444715,-1028.34,0.00043835,7]
[325249602,1714649444724,-1028.34,0.00043835,7]
[325249603,1714649444733,-500.0,0.00043835,7]
[325249604,1714649444743,-500.0,0.00043835,7]
[325249605,1714649444753,-543.00578426,0.00043835,7]
[325249606,1714649444762,-500.0,0.00043835,7]
[325249607,1714649444772,-500.0,0.00043835,7]
[325249608,1714649444781,-500.0,0.00043835,7]
[325249609,1714649444790,-500.0,0.00043835,7]
[325249610,1714649444799,-248.40257829,0.00043835,7]
[325249611,1714649444808,-500.0,0.00043835,7]
[325249612,1714649444818,-500.0,0.00043835,7]
[325249613,1714649444827,-500.0,0.00043835,7]
[325249614,1714649444836,-500.0,0.00043835,7]
[325249615,1714649444846,-500.0,0.00043835,7]
[325249616,1714649444856,-500.0,0.00043835,7]
[325249617,1714649444865,-833.14,0.00043835,7]
[325249618,1714649444874,-833.14,0.00043835,7]
[325249619,1714649444885,-833.14,0.00043835,7]
[325249620,1714649444894,-500.0,0.00043835,7]
[325249621,1714649444903,-833.14,0.00043835,7]
[325249622,1714649444912,-833.14,0.00043835,7]
[325249623,1714649444921,-833.14,0.00043835,7]
[325249624,1714649444930,-833.14,0.00043835,7]
[325249625,1714649444940,-833.14,0.00043835,7]
[325249626,1714649444953,-833.14,0.00043835,7]
[325249627,1714649444962,-833.14,0.00043835,7]
[325249628,1714649444971,-644.99,0.00043835,7]
[325249629,1714649444980,-644.99,0.00043835,7]
[325249630,1714649444991,-500.0,0.00043835,7]
[325249631,1714649445000,-644.99,0.00043835,7]
[325249632,1714649445008,-644.99,0.00043835,7]
[325249633,1714649445017,-644.99,0.00043835,7]
[325249634,1714649445029,-644.99,0.00043835,7]
[325249635,1714649445041,-500.0536974,0.00043835,7]
[325249636,1714649445050,-501.74789673,0.00043835,7]
[325249637,1714649445057,-500.0,0.00043835,7]
[325249638,1714649445066,-658.45,0.00043835,7]
[325249639,1714649445076,-658.45,0.00043835,7]
[325249640,1714649445085,-658.45,0.00043835,7]
[325249641,1714649445094,-151.0,0.00043835,7]
[325249642,1714649445103,-658.45,0.00043835,7]
[325249643,1714649445112,-210.506127,0.00043835,7]
[325249644,1714649445122,-658.45,0.00043835,7]
[325249645,1714649445133,-500.0,0.00043835,7]
[325249646,1714649445142,-658.45,0.00043835,7]
[325249647,1714649445152,-500.0,0.00043835,7]
[325249648,1714649445161,-500.0,0.00043835,7]
[325249649,1714649445171,-500.0,0.00043835,7]
[325249650,1714649445180,-500.0,0.00043835,7]
[325249651,1714649445189,-500.0,0.00043835,7]
[325249652,1714649445199,-500.0,0.00043835,7]
[325249653,1714649445208,-500.0,0.00043835,7]
[325249654,1714649445217,-500.0,0.00043835,7]
[325249655,1714649445226,-500.0,0.00043835,7]
[325249656,1714649445235,-500.0,0.00043835,7]
[325249657,1714649445245,-505.24544539,0.00043835,7]
[325249658,1714649445254,-500.0,0.00043835,7]
[325249659,1714649445263,-151.0,0.00043835,7]
[325249660,1714649445272,-505.568591,0.00043835,7]
[325249661,1714649445308,-151.0,0.00043835,7]
[325249662,1714649445363,-614.43668349,0.00043835,7]
[325249663,1714649445372,-151.0,0.00043835,7]
[325249664,1714649445383,-151.0,0.00043835,7]
[325249665,1714649445392,-3091.23,0.00043835,7]
[325249666,1714649445402,-3091.23,0.00043835,7]
[325249667,1714649445410,-3091.23,0.00043835,7]
[325249668,1714649445421,-3091.23,0.00043835,7]
[325249669,1714649445430,-3091.23,0.00043835,7]
[325249670,1714649445439,-3091.23,0.00043835,7]
[325249671,1714649445448,-349.69442362,0.00043835,7]
[325249672,1714649445492,-0.03420263,0.00043835,7]
[325249673,1714649445507,-150.27137375,0.00043835,7]
[325249674,1714649445516,-3091.23,0.00043835,7]
[325249675,1714649445526,-500.0,0.00043835,7]
[325249676,1714649445535,-3091.23,0.00043835,7]
[325249677,1714649445544,-500.0,0.00043835,7]
[325249678,1714649445553,-3091.23,0.00043835,7]
[325249679,1714649445563,-500.0,0.00043835,7]
[325249680,1714649445572,-3091.23,0.00043835,7]
[325249681,1714649445582,-500.0,0.00043835,7]
[325249682,1714649445591,-603.54,0.00043835,7]
[325249683,1714649445601,-151.0,0.00043835,7]
[325249684,1714649445610,-151.0,0.00043835,7]
[325249685,1714649445619,-500.0,0.00043835,7]
[325249686,1714649445628,-151.0,0.00043835,7]
[325249687,1714649445643,-500.0,0.00043835,7]
[325249688,1714649445652,-500.0,0.00043835,7]
[325249689,1714649445662,-151.0,0.00043835,7]
[325249690,1714649445672,-500.0,0.00043835,7]
[325249691,1714649445681,-500.0,0.00043835,7]